fUSD/lending_fUSD_20250504
["ID","MTS","AMOUNT","RATE_DAILY","PERIOD"]
[359844888,1746369050313,-579.43,0.00019835,2]
[359844889,1746369050323,-151.0,0.00019835,2]
[359844890,1746369050333,-17123.25,0.00019835,2]
[359844891,1746369050342,-450.0,0.00019835,2]
[359844892,1746369050351,-151.0,0.00019835,2]
[359844893,1746369050361,-151.0,0.00019835,2]
[359844894,1746369050370,-151.0,0.00019835,2]
[359844895,1746369050382,-971.1,0.00019835,2]
[359844896,1746369050391,-151.0,0.00019835,2]
[359844897,1746369050401,-151.0,0.00019835,2]
[359844898,1746369050410,-151.0,0.00019835,2]
[359844899,1746369050420,-450.0,0.00019835,2]
[359844900,1746369050429,-3431.34,0.00019835,2]
[359844901,1746369050438,-151.0,0.00019835,2]
[359844902,1746369050447,-450.0,0.00019835,2]
[359844903,1746369050456,-450.0,0.00019835,2]
[359844904,1746369050465,-450.0,0.00019835,2]
[359844905,1746369050475,-2770.47,0.00019835,2]
[359844906,1746369050484,-450.0,0.00019835,2]
[359844907,1746369050493,-749.23,0.00019835,2]
[359844908,1746369050502,-450.0,0.00019835,2]
[359844909,1746369050511,-151.0,0.00019835,2]
[359844910,1746369050520,-450.0,0.00019835,2]
[359844911,1746369050530,-151.0,0.00019835,2]
[359844912,1746369050539,-450.0,0.00019835,2]
[359844913,1746369050549,-450.0,0.00019835,2]
[359844914,1746369050558,-450.0,0.00019835,2]
[359844915,1746369050567,-450.0,0.00019835,2]
[359844916,1746369050577,-32518.54,0.00019835,2]
[359844917,1746369050587,-1660.61,0.00019835,2]
[359844918,1746369050597,-1291.66,0.00019835,2]
[359844919,1746369050607,-450.0,0.00019835,2]
[359844920,1746369050616,-450.0,0.00019835,2]
[359844921,1746369050628,-413.86,0.00019835,2]
[359844922,1746369050638,-492.92,0.00019835,2]
[359844923,1746369050647,-621.91,0.00019835,2]
[359844924,1746369050657,-1419.65,0.00019835,2]
[359844925,1746369050666,-450.0,0.00019835,2]
[359844926,1746369050676,-450.0,0.00019835,2]
[359844927,1746369050686,-450.0,0.00019835,2]
[359844928,1746369050696,-654.42,0.00019835,2]
[359844929,1746369050706,-488.86,0.00019835,2]
[359844930,1746369050716,-1110.83,0.00019835,2]
[359844931,1746369050726,-450.0,0.00019835,2]
[359844932,1746369050736,-450.0,0.00019835,2]
[359844933,1746369050746,-450.0,0.00019835,2]
[359844934,1746369050756,-1163.65,0.00019835,2]
[359844935,1746369050766,-860.5,0.00019835,2]
[359844936,1746369050776,-527.17,0.00019835,2]
[359844937,1746369050786,-742.56,0.00019835,2]
[359844938,1746369050796,-151.0,0.00019835,2]
[359844939,1746369050806,-500.0,0.00019836,2]
[359844940,1746369050815,-3849.44,0.00019836,2]
[359844941,1746369050825,-150.0,0.00019836,2]
[359844942,1746369050834,-150.0,0.00019838,2]
[359844943,1746369050844,-151.0,0.00019839,2]
[359844944,1746369050853,-151.0,0.00019839,2]
[359844945,1746369050863,-151.0,0.00019839,2]
[359844946,1746369050872,-150.0,0.0001984,2]
[359844947,1746369050884,-150.0,0.00019842,2]
[359844948,1746369050894,-150.0,0.00019842,2]
[359844949,1746369050904,-177.75879268,0.00019844,2]
[359844950,1746369050913,-150.0,0.00019844,2]
[359844951,1746369050923,-161.757,0.00019845,2]
[359844952,1746369050933,-177.61409826,0.00019845,2]
[359844953,1746369050943,-168.88878199,0.00019845,2]
[359844954,1746369050953,-500.0,0.0001985,2]
[359844955,1746369050963,-150.0,0.0001985,2]
[359844956,1746369050973,-556.17257505,0.0001985,2]
[359844957,1746369050983,-500.0,0.0001985,2]
[359844958,1746369050993,-186.21126689,0.0001985,2]
[359844959,1746369051002,-573.6648778,0.00019853,2]
[359844960,1746369051012,-293.7039075,0.00019853,2]
[359844961,1746369051022,-200.0,0.00019853,2]
[359844962,1746369051031,-500.0,0.00019853,2]
[359844963,1746369051041,-331.78,0.00019853,2]
[359844964,1746369051051,-500.0,0.00019853,2]
[359844965,1746369051060,-500.0,0.00019853,2]
[359844966,1746369051071,-500.0,0.00019853,2]
[359844967,1746369051081,-500.0,0.00019853,2]
[359844968,1746369051092,-500.0,0.00019853,2]
[359844969,1746369051103,-306.5,0.00019853,2]
[359844970,1746369051113,-150.0,0.00019853,2]
[359844971,1746369051123,-151.0,0.00019853,2]
[359844972,1746369051136,-200.61211145,0.00019853,2]
[359844973,1746369051146,-1002.0,0.00019854,2]
[359844974,1746369051157,-128443.65632395,0.00019854,2]
[359844975,1746369051286,-150.0,0.00019724,2]
[359844976,1746369051296,-150.0,0.00019765,2]
[359844977,1746369051307,-150.0,0.00019795,2]
[359844978,1746369051316,-878.0,0.000198,2]
[359844979,1746369051326,-723.0,0.00019854,2]
[359844980,1746369051338,-71598.93361698,0.00019854,2]
[359844981,1746369051539,-382.956,0.00019854,2]
[359844982,1746369051551,-8248.5,0.00019854,2]
[359844983,1746369051563,-663.158519,0.00019854,2]
[359844984,1746369051575,-3000.0,0.00019854,2]
[359844985,1746369073065,1000.0,0.00018819,2]
[359844989,1746369127836,447.771979,7.945e-05,2]
[359844991,1746369187109,158.3,0.00016712,2]
[359844992,1746369202781,184.04,0.00019313,2]
[359844993,1746369233821,250.0,0.00017,2]
[359844994,1746369234909,300.0,0.00019,2]
[359844995,1746369303473,410.11,0.00018758,2]
[359844998,1746369386447,3000.0,0.00030137,120]
[359844999,1746369390539,165.44,0.00019318,2]
[359845000,1746369408835,11178.97216288,0.0003,30]
[359845001,1746369435550,250.0,0.00018745,2]
[359845002,1746369525233,226.3,0.00018739,2]
[359845003,1746369591590,153.23,0.00018736,2]
[359845004,1746369657414,15981.91,0.00018732,2]
[359845005,1746369750306,293.0,0.00018733,2]
[359845006,1746369753920,4000.0,0.00018733,2]
[359845007,1746369816464,23900.0,0.00018748,2]
[359845008,1746369846377,5991.64,0.00018754,2]
[359845015,1746369983628,178.26,0.00018732,2]
[359845016,1746369984057,178.26,0.00018826,2]
[359845017,1746369997813,211.82,0.00018732,2]
[359845018,1746370023985,158.45,0.00018734,2]
[359845028,1746370032573,438.85166551,0.0003,30]
[359845029,1746370038887,1379.37,0.00016817,2]
[359845030,1746370039091,1379.37,0.00019081,2]
[359845035,1746370192333,1102.78,0.0001874,2]
[359845038,1746370231540,-176.51281847,0.00019573,2]
[359845039,1746370231549,-250.0,0.00019588,2]
[359845040,1746370231559,-200.0,0.00019588,2]
[359845041,1746370231569,-200.0,0.00019604,2]
[359845042,1746370231578,-121.96205965,0.00019626,2]
[359845043,1746370231590,-592.20154,0.00019626,2]
[359845044,1746370231600,-427.79846,0.00019656,2]
[359845045,1746370231729,-286.36513959,0.00019656,2]
[359845046,1746370231737,-168.88878199,0.0001968,2]
[359845047,1746370231747,-44.52799957,0.00019687,2]
[359845048,1746370231757,-441.11487293,0.00019687,2]
[359845112,1746370237635,-228.52072709,0.00019687,2]
[359845113,1746370237645,-1021.7518915,0.0001971,2]
[359845114,1746370237654,-207.4,0.00019714,2]
[359845115,1746370237664,-272.36,0.00019716,2]
[359845116,1746370237674,-714.16359959,0.00019717,2]
[359845117,1746370237683,-300.0,0.00019724,2]
[359845118,1746370237694,-1200.0,0.00019724,2]
[359845119,1746370237703,-300.0,0.00019724,2]
[359845120,1746370237712,-500.0,0.00019725,2]
[359845121,1746370237722,-500.0,0.00019725,2]
[359845122,1746370237731,-500.0,0.00019725,2]
[359845123,1746370237740,-500.0,0.00019725,2]
[359845124,1746370237749,-588.04579002,0.00019725,2]
[359845125,1746370237759,-500.0,0.00019725,2]
[359845126,1746370237768,-500.0,0.00019725,2]
[359845127,1746370237777,-500.0,0.00019725,2]
[359845128,1746370237786,-500.0,0.00019725,2]
[359845129,1746370237796,-500.0,0.00019725,2]
[359845130,1746370237806,-500.0,0.00019725,2]
[359845131,1746370237815,-500.0,0.00019725,2]
[359845132,1746370237825,-500.0,0.00019725,2]
[359845133,1746370237834,-500.0,0.00019725,2]
[359845134,1746370237843,-500.0,0.00019725,2]
[359845135,1746370237852,-500.0,0.00019725,2]
[359845136,1746370237862,-500.0,0.00019725,2]
[359845137,1746370237871,-500.0,0.00019725,2]
[359845138,1746370237880,-500.0,0.00019725,2]
[359845139,1746370237889,-500.0,0.00019725,2]
[359845140,1746370237899,-500.0,0.00019725,2]
[359845141,1746370237909,-500.0,0.00019725,2]
[359845142,1746370237919,-500.0,0.00019725,2]
[359845143,1746370237928,-500.0,0.00019725,2]
[359845144,1746370237939,-500.0,0.00019725,2]
[359845145,1746370237948,-500.0,0.00019725,2]
[359845146,1746370237958,-500.0,0.00019725,2]
[359845147,1746370237967,-500.0,0.00019725,2]
[359845148,1746370237979,-500.0,0.00019725,2]
[359845149,1746370237993,-548.048,0.00019725,2]
[359845150,1746370238005,-500.0,0.00019725,2]
[359845151,1746370238017,-500.0,0.00019725,2]
[359845152,1746370238028,-500.0,0.00019725,2]
[359845153,1746370238039,-500.0,0.00019725,2]
[359845154,1746370238050,-500.0,0.00019725,2]
[359845156,1746370238060,-500.0,0.00019725,2]
[359845157,1746370238071,-500.0,0.00019725,2]
[359845158,1746370238083,-500.0,0.00019725,2]
[359845162,1746370238095,-29.40281413,0.00019726,2]
[359845166,1746370238109,-174.11477135,0.00019726,2]
[359845171,1746370238120,-216.45762449,0.00019726,2]
[359845175,1746370238131,-490.0,0.00019726,2]
[359845178,1746370238146,-56.84634284,0.00019726,2]
[359845184,1746370239911,-313.98189417,0.00019726,2]
[359845185,1746370240016,-119.17176299,0.00019726,2]
[359845186,1746370240027,-450.0,0.00019726,2]
[359845187,1746370240038,-450.0,0.00019726,2]
[359845188,1746370240048,-460.69424881,0.00019726,2]
[359845189,1746370240059,-450.0,0.00019726,2]
[359845190,1746370240071,-450.0,0.00019726,2]
[359845191,1746370240084,-450.0,0.00019726,2]
[359845192,1746370240095,-450.0,0.00019726,2]
[359845193,1746370240106,-450.0,0.00019726,2]
[359845194,1746370240118,-450.0,0.00019726,2]
[359845195,1746370240128,-214.56592558,0.00019726,2]
[359845196,1746370240138,-450.0,0.00019726,2]
[359845197,1746370240149,-465.69445318,0.00019726,2]
[359845198,1746370240161,-450.0,0.00019726,2]
[359845199,1746370240173,-456.34209792,0.00019726,2]
[359845200,1746370240187,-470.0,0.00019726,2]
[359845201,1746370240199,-450.0,0.00019726,2]
[359845202,1746370240210,-467.10237204,0.00019726,2]
[359845203,1746370240220,-450.0,0.00019726,2]
[359845204,1746370240231,-450.0,0.00019726,2]
[359845205,1746370240244,-470.0,0.00019726,2]
[359845206,1746370240255,-450.0,0.00019726,2]
[359845207,1746370240266,-470.0,0.00019726,2]
[359845208,1746370240278,-450.0,0.00019726,2]
[359845209,1746370240289,-450.0,0.00019726,2]
[359845210,1746370240300,-450.0,0.00019726,2]
[359845211,1746370240310,-450.0,0.00019726,2]
[359845212,1746370240320,-450.0,0.00019726,2]
[359845213,1746370240331,-470.0,0.00019726,2]
[359845214,1746370240342,-469.57039548,0.00019726,2]
[359845215,1746370240352,-450.0,0.00019726,2]
[359845216,1746370240364,-450.0,0.00019726,2]
[359845217,1746370240374,-450.0,0.00019726,2]
[359845218,1746370240385,-450.0,0.00019726,2]
[359845219,1746370240395,-450.0,0.00019726,2]
[359845220,1746370240405,-450.0,0.00019726,2]
[359845221,1746370240416,-480.95,0.00019726,2]
[359845222,1746370240427,-450.0,0.00019726,2]
[359845223,1746370240437,-450.0,0.00019726,2]
[359845224,1746370240448,-450.0,0.00019726,2]
[359845225,1746370240459,-470.0,0.00019726,2]
[359845226,1746370240470,-450.0,0.00019726,2]
[359845227,1746370240481,-225.11,0.00019726,2]
[359845228,1746370240492,-450.0,0.00019726,2]
[359845229,1746370240504,-556.97418144,0.00019726,2]
[359845230,1746370240515,-450.0,0.00019726,2]
[359845231,1746370240530,-450.0,0.00019726,2]
[359845232,1746370240540,-450.0,0.00019726,2]
[359845233,1746370240552,-490.39837943,0.00019726,2]
[359845234,1746370240564,-450.0,0.00019726,2]
[359845235,1746370240574,-546.06261025,0.00019726,2]
[359845237,1746370240584,-450.0,0.00019726,2]
[359845239,1746370240594,-450.0,0.00019726,2]
[359845240,1746370240606,-470.0,0.00019726,2]
[359845241,1746370240617,-450.0,0.00019726,2]
[359845242,1746370240627,-450.0,0.00019726,2]
[359845243,1746370240637,-450.0,0.00019726,2]
[359845244,1746370240647,-490.0,0.00019726,2]
[359845245,1746370240658,-470.0,0.00019726,2]
[359845246,1746370240669,-450.0,0.00019726,2]
[359845247,1746370240682,-450.0,0.00019726,2]
[359845248,1746370240695,-450.0,0.00019726,2]
[359845249,1746370240706,-490.0,0.00019726,2]
[359845250,1746370240718,-450.0,0.00019726,2]
[359845251,1746370240728,-450.0,0.00019726,2]
[359845252,1746370240740,-490.0,0.00019726,2]
[359845253,1746370240751,-450.0,0.00019726,2]
[359845254,1746370240761,-205.63185782,0.00019726,2]
[359845255,1746370240772,-450.0,0.00019726,2]
[359845256,1746370240782,-490.0,0.00019726,2]
[359845257,1746370240794,-450.0,0.00019726,2]
[359845258,1746370240804,-450.0,0.00019726,2]
[359845259,1746370240815,-330.0,0.00019726,2]
[359845260,1746370240828,-521.5,0.00019726,2]
[359845261,1746370240838,-490.0,0.00019726,2]
[359845262,1746370240848,-450.0,0.00019726,2]
[359845263,1746370240858,-490.0,0.00019726,2]
[359845264,1746370240868,-450.0,0.00019726,2]
[359845265,1746370240878,-490.0,0.00019726,2]
[359845266,1746370240889,-450.0,0.00019726,2]
[359845267,1746370240899,-450.0,0.00019726,2]
[359845268,1746370240910,-538.21,0.00019726,2]
[359845269,1746370240921,-450.0,0.00019726,2]
[359845270,1746370240933,-450.0,0.00019726,2]
[359845271,1746370240944,-450.0,0.00019726,2]
[359845272,1746370240955,-450.0,0.00019726,2]
[359845273,1746370240966,-450.0,0.00019726,2]
[359845274,1746370240976,-224.37007143,0.00019726,2]
[359845275,1746370240988,-450.0,0.00019726,2]
[359845276,1746370240999,-591.25,0.00019726,2]
[359845277,1746370241011,-450.0,0.00019726,2]
[359845278,1746370241023,-450.0,0.00019726,2]
[359845279,1746370241036,-450.0,0.00019726,2]
[359845280,1746370241046,-594.16443873,0.00019726,2]
[359845281,1746370241056,-450.0,0.00019726,2]
[359845282,1746370241066,-450.0,0.00019726,2]
[359845283,1746370241077,-450.0,0.00019726,2]
[359845284,1746370241089,-450.0,0.00019726,2]
[359845285,1746370241099,-450.0,0.00019726,2]
[359845286,1746370241109,-450.0,0.00019726,2]
[359845287,1746370241120,-450.0,0.00019726,2]
[359845288,1746370241131,-500.0,0.00019726,2]
[359845289,1746370241142,-470.0,0.00019726,2]
[359845290,1746370241152,-563.52,0.00019726,2]
[359845291,1746370241163,-450.0,0.00019726,2]
[359845292,1746370241174,-450.0,0.00019726,2]
[359845293,1746370241184,-450.0,0.00019726,2]
[359845294,1746370241195,-450.0,0.00019726,2]
[359845295,1746370241205,-450.0,0.00019726,2]
[359845296,1746370241216,-490.0,0.00019726,2]
[359845297,1746370241227,-450.0,0.00019726,2]
[359845298,1746370241238,-450.0,0.00019726,2]
[359845299,1746370241249,-450.0,0.00019726,2]
[359845300,1746370241259,-450.0,0.00019726,2]
[359845301,1746370241271,-450.0,0.00019726,2]
[359845302,1746370241282,-450.0,0.00019726,2]
[359845303,1746370241292,-450.0,0.00019726,2]
[359845304,1746370241303,-470.0,0.00019726,2]
[359845305,1746370241313,-450.0,0.00019726,2]
[359845306,1746370241324,-450.0,0.00019726,2]
[359845307,1746370241335,-450.0,0.00019726,2]
[359845308,1746370241346,-151.88436413,0.00019726,2]
[359845309,1746370241357,-450.0,0.00019726,2]
[359845310,1746370241367,-450.0,0.00019726,2]
[359845311,1746370241378,-470.0,0.00019726,2]
[359845312,1746370241388,-450.0,0.00019726,2]
[359845313,1746370241399,-450.0,0.00019726,2]
[359845314,1746370241409,-450.0,0.00019726,2]
[359845315,1746370241419,-450.0,0.00019726,2]
[359845316,1746370241430,-460.97,0.00019726,2]
[359845317,1746370241440,-450.0,0.00019726,2]
[359845318,1746370241450,-450.0,0.00019726,2]
[359845319,1746370241460,-450.0,0.00019726,2]
[359845320,1746370241471,-539.93,0.00019726,2]
[359845321,1746370241481,-513.53619116,0.00019726,2]
[359845322,1746370241492,-450.0,0.00019726,2]
[359845323,1746370241502,-537.53601954,0.00019726,2]
[359845324,1746370241512,-450.0,0.00019726,2]
[359845325,1746370241525,-450.0,0.00019726,2]
[359845326,1746370241536,-450.0,0.00019726,2]
[359845327,1746370241546,-450.0,0.00019726,2]
[359845328,1746370241556,-273.51035484,0.00019726,2]
[359845329,1746370241566,-450.0,0.00019726,2]
[359845330,1746370241575,-450.0,0.00019726,2]
[359845331,1746370241586,-489.40407421,0.00019726,2]
[359845332,1746370241596,-450.0,0.00019726,2]
[359845333,1746370241848,-450.0,0.00019726,2]
[359845334,1746370241865,-514.84217052,0.00019726,2]
[359845335,1746370241878,-450.0,0.00019726,2]
[359845336,1746370241887,-450.0,0.00019726,2]
[359845337,1746370241896,-450.0,0.00019726,2]
[359845338,1746370241905,-461.28,0.00019726,2]
[359845339,1746370241914,-450.0,0.00019726,2]
[359845340,1746370241925,-450.0,0.00019726,2]
[359845341,1746370241934,-450.0,0.00019726,2]
[359845342,1746370241943,-450.0,0.00019726,2]
[359845343,1746370241952,-250.0,0.00019726,2]
[359845344,1746370241961,-468.49983359,0.00019726,2]
[359845345,1746370241970,-456.25298813,0.00019726,2]
[359845346,1746370241979,-450.0,0.00019726,2]
[359845347,1746370241989,-450.0,0.00019726,2]
[359845348,1746370242000,-450.0,0.00019726,2]
[359845349,1746370242010,-561.62,0.00019726,2]
[359845350,1746370242019,-450.0,0.00019726,2]
[359845351,1746370242029,-450.0,0.00019726,2]
[359845352,1746370242038,-450.0,0.00019726,2]
[359845353,1746370242048,-450.0,0.00019726,2]
[359845354,1746370242059,-450.0,0.00019726,2]
[359845355,1746370242068,-501.56177002,0.00019726,2]
[359845356,1746370242077,-450.0,0.00019726,2]
[359845357,1746370242087,-450.0,0.00019726,2]
[359845358,1746370242096,-450.0,0.00019726,2]
[359845359,1746370242105,-330.0,0.00019726,2]
[359845360,1746370242114,-726.02,0.00019726,2]
[359845361,1746370242123,-450.0,0.00019726,2]
[359845362,1746370242132,-450.0,0.00019726,2]
[359845363,1746370242142,-450.0,0.00019726,2]
[359845364,1746370242151,-450.0,0.00019726,2]
[359845365,1746370242160,-450.0,0.00019726,2]
[359845366,1746370242169,-450.0,0.00019726,2]
[359845367,1746370242179,-450.0,0.00019726,2]
[359845368,1746370242188,-450.0,0.00019726,2]
[359845369,1746370242198,-450.0,0.00019726,2]
[359845370,1746370242207,-978.05,0.00019726,2]
[359845371,1746370242216,-490.0,0.00019726,2]
[359845372,1746370242226,-450.0,0.00019726,2]
[359845373,1746370242235,-450.0,0.00019726,2]
[359845374,1746370242244,-450.0,0.00019726,2]
[359845375,1746370242254,-450.0,0.00019726,2]
[359845376,1746370242263,-450.0,0.00019726,2]
[359845377,1746370242272,-450.0,0.00019726,2]
[359845378,1746370242281,-450.0,0.00019726,2]
[359845379,1746370242291,-18034.66,0.00019726,2]
[359845380,1746370242300,-450.0,0.00019726,2]
[359845381,1746370242310,-450.0,0.00019726,2]
[359845383,1746370242320,-450.0,0.00019726,2]
[359845385,1746370242329,-450.0,0.00019726,2]
[359845386,1746370242339,-554.13165685,0.00019726,2]
[359845387,1746370242348,-450.0,0.00019726,2]
[359845388,1746370242358,-545.43,0.00019726,2]
[359845389,1746370242368,-450.0,0.00019726,2]
[359845390,1746370242378,-930.49,0.00019726,2]
[359845391,1746370242387,-450.0,0.00019726,2]
[359845392,1746370242397,-450.0,0.00019726,2]
[359845393,1746370242406,-450.0,0.00019726,2]
[359845394,1746370242415,-450.0,0.00019726,2]
[359845395,1746370242424,-470.0,0.00019726,2]
[359845396,1746370242433,-450.0,0.00019726,2]
[359845397,1746370242442,-450.0,0.00019726,2]
[359845398,1746370242451,-4091.39,0.00019726,2]
[359845399,1746370242460,-450.0,0.00019726,2]
[359845400,1746370242469,-450.0,0.00019726,2]
[359845401,1746370242479,-450.0,0.00019726,2]
[359845402,1746370242488,-450.0,0.00019726,2]
[359845403,1746370242497,-450.0,0.00019726,2]
[359845404,1746370242506,-450.0,0.00019726,2]
[359845405,1746370242518,-450.0,0.00019726,2]
[359845406,1746370242532,-450.0,0.00019726,2]
[359845407,1746370242541,-450.0,0.00019726,2]
[359845408,1746370242551,-450.0,0.00019726,2]
[359845409,1746370242561,-2955.51,0.00019726,2]
[359845410,1746370242572,-450.0,0.00019726,2]
[359845411,1746370242582,-450.0,0.00019726,2]
[359845412,1746370242591,-450.0,0.00019726,2]
[359845413,1746370242600,-450.0,0.00019726,2]
[359845414,1746370242610,-450.0,0.00019726,2]
[359845415,1746370242620,-450.0,0.00019726,2]
[359845416,1746370242629,-450.0,0.00019726,2]
[359845417,1746370242638,-450.0,0.00019726,2]
[359845418,1746370242647,-510.15028093,0.00019726,2]
[359845419,1746370242656,-450.0,0.00019726,2]
[359845420,1746370242666,-450.0,0.00019726,2]
[359845421,1746370242675,-450.0,0.00019726,2]
[359845422,1746370242684,-450.0,0.00019726,2]
[359845423,1746370242694,-450.0,0.00019726,2]
[359845424,1746370242703,-450.0,0.00019726,2]
[359845425,1746370242712,-450.0,0.00019726,2]
[359845426,1746370242721,-719.37,0.00019726,2]
[359845427,1746370242731,-450.0,0.00019726,2]
[359845428,1746370242740,-450.0,0.00019726,2]
[359845429,1746370242751,-450.0,0.00019726,2]
[359845430,1746370242762,-450.0,0.00019726,2]
[359845431,1746370242771,-478.26,0.00019726,2]
[359845432,1746370242780,-450.0,0.00019726,2]
[359845433,1746370242790,-492.71,0.00019726,2]
[359845434,1746370242800,-450.0,0.00019726,2]
[359845435,1746370242809,-590.47829829,0.00019726,2]
[359845436,1746370242819,-450.0,0.00019726,2]
[359845437,1746370242828,-450.0,0.00019726,2]
[359845438,1746370242839,-450.0,0.00019726,2]
[359845439,1746370242849,-470.0,0.00019726,2]
[359845440,1746370242858,-450.0,0.00019726,2]
[359845441,1746370242868,-450.0,0.00019726,2]
[359845442,1746370242877,-450.0,0.00019726,2]
[359845443,1746370242886,-450.0,0.00019726,2]
[359845444,1746370242896,-450.0,0.00019726,2]
[359845445,1746370242907,-450.0,0.00019726,2]
[359845446,1746370242916,-1272.74,0.00019726,2]
[359845447,1746370242926,-450.0,0.00019726,2]
[359845448,1746370242935,-450.0,0.00019726,2]
[359845449,1746370242945,-450.0,0.00019726,2]
[359845450,1746370242954,-450.0,0.00019726,2]
[359845451,1746370242963,-450.0,0.00019726,2]
[359845452,1746370242972,-208.32941913,0.00019726,2]
[359845453,1746370242982,-450.0,0.00019726,2]
[359845454,1746370242991,-450.0,0.00019726,2]
[359845455,1746370243000,-450.0,0.00019726,2]
[359845456,1746370243009,-450.0,0.00019726,2]
[359845457,1746370243018,-450.0,0.00019726,2]
[359845458,1746370243027,-450.0,0.00019726,2]
[359845459,1746370243036,-450.0,0.00019726,2]
[359845460,1746370243046,-507.3986445,0.00019726,2]
[359845461,1746370243055,-450.0,0.00019726,2]
[359845462,1746370243064,-450.0,0.00019726,2]
[359845463,1746370243073,-250.0,0.00019726,2]
[359845464,1746370243083,-450.0,0.00019726,2]
[359845465,1746370243092,-450.0,0.00019726,2]
[359845466,1746370243101,-400.36885343,0.00019726,2]
[359845467,1746370243110,-450.0,0.00019726,2]
[359845468,1746370243119,-450.0,0.00019726,2]
[359845469,1746370243129,-450.0,0.00019726,2]
[359845470,1746370243139,-450.0,0.00019726,2]
[359845471,1746370243148,-450.0,0.00019726,2]
[359845472,1746370243157,-1519.67,0.00019726,2]
[359845473,1746370243166,-450.0,0.00019726,2]
[359845474,1746370243175,-450.0,0.00019726,2]
[359845475,1746370243185,-450.0,0.00019726,2]
[359845476,1746370243194,-458.8,0.00019726,2]
[359845477,1746370243203,-450.0,0.00019726,2]
[359845478,1746370243212,-450.0,0.00019726,2]
[359845479,1746370243221,-470.0,0.00019726,2]
[359845480,1746370243231,-450.0,0.00019726,2]
[359845481,1746370243240,-32080.18,0.00019726,2]
[359845482,1746370243250,-450.0,0.00019726,2]
[359845483,1746370243260,-450.0,0.00019726,2]
[359845484,1746370243270,-450.0,0.00019726,2]
[359845485,1746370243279,-450.0,0.00019726,2]
[359845486,1746370243288,-450.0,0.00019726,2]
[359845487,1746370243297,-450.0,0.00019726,2]
[359845488,1746370243307,-450.0,0.00019726,2]
[359845489,1746370243316,-544.71439111,0.00019726,2]
[359845490,1746370243326,-450.0,0.00019726,2]
[359845491,1746370243335,-450.0,0.00019726,2]
[359845492,1746370243345,-450.0,0.00019726,2]
[359845493,1746370243356,-450.0,0.00019726,2]
[359845494,1746370243365,-450.0,0.00019726,2]
[359845495,1746370243375,-450.0,0.00019726,2]
[359845496,1746370243384,-450.0,0.00019726,2]
[359845497,1746370243394,-637.06,0.00019726,2]
[359845498,1746370243403,-450.0,0.00019726,2]
[359845499,1746370243412,-450.0,0.00019726,2]
[359845500,1746370243422,-379.60030711,0.00019726,2]
[359845501,1746370243431,-450.0,0.00019726,2]
[359845502,1746370243440,-450.0,0.00019726,2]